bitfinex-derivatives/quotes_ETHF0:USTF0_20251009
["timestamp","ask_amount","ask_price","bid_price","bid_amount"]
[1760014021396,0.1331,4403.0,4402.9,0.00215111]
[1760014021590,0.4572,4403.0,4402.9,0.00215111]
[1760014022094,0.4572,4403.0,4402.9,41.21080111]
[1760014022486,0.18332727,4403.2,4403.1,0.40863]
[1760014022787,0.18332727,4403.2,4403.1,0.73943]
[1760014023889,0.18332727,4403.2,4403.1,0.97043]
[1760014024492,0.00172727,4403.2,4403.1,0.73943]
[1760014024694,0.00172727,4403.2,4403.1,0.97043]
[1760014026194,0.3241,4404.3,4404.2,0.40853]
[1760014026396,0.40852,4404.4,4404.2,0.40853]
[1760014026595,0.40852,4404.4,4403.7,0.231]
[1760014026596,0.40855,4404.0,4403.8,0.40856]
[1760014026897,0.3241,4403.6,4403.5,0.40859]
[1760014027390,0.7327,4403.5,4403.3,0.231]
[1760014027591,0.4086,4403.5,4403.1,0.3308]
[1760014027791,0.00211653,4403.6,4403.0,0.3663]
[1760014027994,0.4086,4403.5,4403.4,0.4086]
[1760014028302,0.7327,4403.5,4403.4,0.4086]
[1760014028797,0.40863,4403.2,4403.1,0.40862]
[1760014029096,0.3241,4403.2,4403.1,0.40862]
[1760014029398,0.3241,4403.4,4403.3,0.73942]
[1760014029899,0.32621653,4403.6,4403.5,0.4086]
[1760014030100,0.32621653,4403.6,4403.2,0.40862]
[1760014030289,0.00211653,4403.6,4403.2,0.40862]
[1760014030495,0.00211653,4403.6,4403.0,0.3308]
[1760014030496,0.3241,4403.1,4403.0,0.3308]
[1760014030796,0.3241,4403.0,4402.9,41.21080111]
[1760014030996,0.3241,4403.0,4402.9,41.54160111]
[1760014032004,0.4572,4403.0,4402.9,40.80215111]
[1760014032498,0.3241,4403.0,4402.9,0.33295111]
[1760014032897,0.3241,4403.0,4402.9,0.00215111]
[1760014033096,0.4572,4403.0,4402.9,0.00215111]
[1760014033600,0.3241,4402.8,4401.5,0.3308]
[1760014033894,0.3241,4401.4,4401.2,0.4088]
[1760014034099,0.3241,4401.9,4401.2,40.8]
[1760014034296,0.3241,4401.9,4401.3,0.3308]
[1760014034600,0.3241,4401.9,4401.8,0.3308]
[1760014034799,1.02158,4403.2,4401.8,0.3308]
[1760014034800,0.4572,4402.5,4401.8,0.33255501]
[1760014035000,0.54179,4402.5,4402.3,0.4087]
[1760014035197,0.3241,4402.4,4402.3,0.4087]
[1760014035400,0.3241,4402.4,4402.3,0.7395]
[1760014035596,0.3241,4402.6,4402.5,0.40869]
[1760014035996,0.40866,4402.9,4402.7,0.40866]
[1760014036194,0.40866,4402.9,4400.9,1.60371319]
[1760014036195,0.3241,4401.9,4400.9,1.60371319]
[1760014036396,0.4572,4401.0,4400.2,0.7397]
[1760014036597,0.3241,4401.0,4400.2,0.3308]
[1760014036900,0.40885,4400.8,4400.5,0.3308]
[1760014037293,0.73295,4400.8,4400.6,0.3308]
[1760014037496,0.40885,4400.8,4400.5,0.00273273]
[1760014037704,0.3241,4400.7,4400.6,0.3308]
[1760014037903,0.40887,4400.6,4400.5,0.00273273]
[1760014038099,0.40887,4400.6,4400.5,0.33353273]
[1760014039194,0.73297,4400.6,4400.5,0.33353273]
[1760014039400,0.73297,4400.6,4400.5,0.00273273]
[1760014042000,0.3241,4400.6,4400.5,0.00273273]
[1760014042200,0.3241,4400.6,4400.5,0.34343273]
[1760014042604,0.3241,4400.6,4400.5,0.00273273]
[1760014043306,0.3241,4400.6,4400.5,0.34343273]
[1760014043504,0.3241,4400.6,4400.5,0.00273273]
[1760014044408,0.3241,4400.6,4400.5,0.34343273]
[1760014044808,0.3241,4400.6,4400.5,0.00273273]
[1760014045507,0.73326,4399.6,4399.5,0.3407]
[1760014045905,0.3243,4399.6,4399.5,41.1407]
[1760014046204,0.138,4400.5,4399.6,0.40896]
[1760014046404,0.3243,4400.0,4399.8,0.40894]
[1760014046611,0.40891,4400.1,4400.0,0.3407]
[1760014046802,0.3243,4400.4,4400.2,0.4089]
[1760014047003,0.41084289,4400.5,4400.4,0.3407]
[1760014047605,0.00196289,4400.5,4400.4,0.3407]
[1760014048202,0.46396289,4400.5,4399.7,0.3241]
[1760014048610,0.7404,4400.3,4400.2,0.4089]
[1760014050112,0.40891,4400.2,4400.0,0.40891]
[1760014050407,0.3315,4399.7,4399.6,0.00259159]
[1760014051603,8.23476487,4399.7,4399.6,0.00259159]
[1760014052813,0.3315,4399.7,4399.6,0.00259159]
[1760014053408,0.74044,4399.8,4399.6,0.41155159]
[1760014053716,0.74044,4399.8,4399.7,0.3241]
[1760014053909,0.3315,4399.7,4399.6,0.00259159]
[1760014055111,0.1377,4399.5,4398.7,40.8]
[1760014055314,0.409,4399.2,4398.9,0.40902]
[1760014055509,0.40901,4399.1,4399.0,0.3241]
[1760014056211,0.74051,4399.1,4399.0,0.00254031]
[1760014057913,0.3315,4399.1,4399.0,0.00254031]
[1760014058111,0.1818,4399.9,4399.8,0.3241]
[1760014058505,0.00196289,4400.5,4399.6,1.34651]
[1760014058714,0.41084289,4400.5,4399.8,0.3241]
[1760014059115,0.41084289,4400.5,4400.3,0.40889]
[1760014059419,0.74234289,4400.5,4400.3,0.73299]
[1760014059711,0.3315,4400.4,4400.3,0.3241]
[1760014059914,0.3315,4400.4,4399.9,40.8]
[1760014060110,0.3315,4400.4,4400.3,0.40889]
[1760014060916,0.40891,4400.2,4400.1,0.40891]
[1760014061110,0.3315,4400.2,4400.1,0.40891]
[1760014061310,0.33346289,4400.5,4400.4,0.73299]
[1760014061510,0.00196289,4400.5,4400.4,0.73299]
[1760014062612,0.3315,4402.0,4401.8,0.3241]
[1760014062804,0.3315,4402.0,4401.7,40.8]
[1760014062805,0.1377,4402.0,4401.7,40.8]
[1760014063008,0.40875,4401.9,4401.7,40.8]
[1760014063209,0.3315,4401.8,4401.7,40.8]
[1760014063416,0.33392648,4401.8,4401.7,40.8]
[1760014063612,0.3315,4401.0,4400.6,0.3241]
[1760014063912,0.3315,4400.9,4400.8,0.40884]
[1760014064106,0.3315,4400.9,4400.8,41.20884]
[1760014065013,1.15944,4402.5,4400.9,1.0221]
[1760014065014,0.4864,4402.0,4400.9,1.0221]
[1760014065312,0.3487,4401.4,4401.1,0.40881]
[1760014065518,0.3487,4401.7,4401.1,0.73821]
[1760014065817,0.75751,4401.3,4401.1,0.73821]
[1760014066017,0.40881,4401.3,4401.0,0.40882]
[1760014066216,0.3487,4401.1,4401.0,0.40882]
[1760014069011,0.1333,4401.0,4399.8,0.3294]
[1760014069207,0.1333,4401.0,4399.3,2.00464149]
[1760014069208,0.40892,4400.0,4399.2,1.0225]
[1760014069414,3.30051065,4400.9,4400.0,0.12]
[1760014069609,0.40886,4400.7,4400.2,0.4089]
[1760014069814,0.75757,4400.6,4400.4,0.40888]
[1760014070020,0.3487,4400.5,4400.4,0.40888]
[1760014070214,0.75758,4400.5,4399.7,0.3294]
[1760014070422,0.54218,4400.5,4400.3,0.40889]
[1760014070615,0.3487,4400.4,4400.3,0.40889]
[1760014072522,0.75759,4400.4,4400.2,0.4089]
[1760014072821,0.3487,4400.3,4400.1,0.40891]
[1760014073118,0.3487,4400.3,4399.6,41.3604]
[1760014073319,0.1333,4400.5,4399.6,41.3604]
[1760014073320,0.40891,4400.1,4400.0,0.40892]
[1760014073508,0.3487,4399.9,4399.8,0.40893]
[1760014074112,0.3487,4400.3,4400.2,0.4089]
[1760014074723,0.3487,4400.9,4400.7,0.40885]
[1760014074920,0.75754,4400.9,4400.7,0.40885]
[1760014075224,0.75754,4400.9,4399.9,40.8]
[1760014075225,0.482,4400.0,4399.9,40.8]
[1760014075525,0.1333,4400.0,4399.9,0.40893]
[1760014076122,0.1333,4400.5,4400.4,0.40889]
[1760014076322,0.482,4400.5,4400.4,0.40889]
[1760014076816,0.3487,4399.9,4399.7,0.40895]
[1760014077021,0.1333,4400.0,4399.9,0.40893]
[1760014077221,0.482,4400.0,4399.9,0.40893]
[1760014078320,0.3481,4400.7,4399.7,0.231]
[1760014078620,0.18412648,4401.8,4401.3,0.40879]
[1760014078818,0.55268693,4401.4,4401.3,0.40879]
[1760014079122,0.90078693,4401.4,4401.3,0.40879]
[1760014079314,0.3481,4401.4,4401.3,0.40879]
[1760014079515,0.3481,4401.2,4400.2,0.109]
[1760014079821,0.3481,4400.9,4400.7,0.40885]
[1760014080117,0.4849,4401.0,4400.9,0.40884]
[1760014080316,0.4849,4401.0,4400.7,0.40885]
[1760014080317,0.75696,4400.8,4400.7,0.40885]
[1760014080725,0.40889,4400.4,4399.9,1.02234]
[1760014081019,0.40889,4400.4,4399.8,0.3231]
[1760014081020,0.4089,4400.3,4400.2,0.4089]
[1760014081221,0.3481,4400.3,4400.2,0.4089]
[1760014081927,0.3481,4400.3,4400.2,0.732]
[1760014082220,0.3481,4400.3,4400.2,0.4089]
[1760014083126,0.3185,4401.0,4400.9,0.40884]
[1760014083319,0.1817,4401.0,4400.9,0.73194]
[1760014084219,0.4814,4401.5,4400.9,0.73194]
[1760014084220,0.4814,4401.5,4401.4,0.40879]
[1760014084418,0.4814,4401.5,4401.0,1.02207]
[1760014084419,0.4088,4401.3,4401.2,0.40881]
[1760014084718,0.1333,4401.5,4401.1,40.8]
[1760014084920,0.75691,4401.3,4401.2,0.40881]
[1760014085326,0.40882,4401.1,4401.0,0.40883]
[1760014085527,0.75695,4400.9,4400.8,0.40885]
[1760014086224,0.3481,4400.4,4400.3,0.40889]
[1760014086832,0.3481,4400.4,4400.0,40.8]
[1760014087130,0.54572,4400.0,4399.9,3.0]
[1760014087525,8.88760468,4400.0,4399.9,3.0]
[1760014088632,8.88760468,4400.0,4399.0,0.46144031]
[1760014088633,0.40901,4399.1,4399.0,0.46144031]
[1760014089028,0.231,4399.4,4399.1,0.3231]
[1760014089229,0.40896,4399.6,4399.3,0.73208]
[1760014089433,0.159,4399.6,4399.5,0.86787]
[1760014090032,0.40894,4399.8,4399.6,0.3231]
[1760014091836,0.40894,4399.8,4399.6,0.40895]
[1760014092139,0.40894,4399.8,4399.7,0.3231]
[1760014092629,8.3991741,4399.8,4399.7,0.3231]
[1760014097042,0.40896,4399.6,4399.5,0.4589]
[1760014097244,0.40901,4399.1,4399.0,0.1144988]
[1760014097544,3.61523434,4399.1,4399.0,0.4375988]
[1760014097744,8.61523434,4399.1,4399.0,0.4375988]
[1760014098246,8.61523434,4399.1,4399.0,0.43992947]
[1760014098446,0.64001,4399.1,4399.0,0.43992947]
[1760014098636,2.04448,4400.4,4399.0,0.43992947]
[1760014098845,0.4089,4400.2,4400.1,0.3231]
[1760014099049,0.96163457,4400.2,4400.1,0.3231]
[1760014099348,3.94496142,4400.2,4400.1,0.3231]
[1760014099846,8.94496142,4400.2,4400.0,0.4589]
[1760014100050,0.55273457,4400.1,4400.0,0.4589]
[1760014100345,3.52329529,4400.1,4400.0,0.4589]
[1760014100747,0.40884,4400.9,4400.5,0.1358]
[1760014100946,0.1817,4401.1,4401.0,0.4589]
[1760014101449,0.00242648,4401.8,4401.7,0.3231]
[1760014101649,0.18842648,4401.8,4401.7,0.3231]
[1760014102958,3.2028568,4401.8,4401.7,0.3231]
[1760014107853,3.0168568,4401.8,4401.7,0.73186]
[1760014108058,0.23342648,4401.8,4401.7,0.3231]
[1760014110361,0.00242648,4401.8,4401.7,0.3231]
[1760014110557,0.00242648,4401.8,4401.7,5.3231]
[1760014111556,0.1817,4402.3,4402.2,0.40872]
[1760014111852,0.018,4402.9,4402.8,0.72506]
[1760014112053,0.40865,4403.0,4402.8,0.40866]
[1760014112256,0.40865,4403.0,4402.9,0.3164]
[1760014112459,0.64169322,4403.0,4402.9,0.31894593]
[1760014112858,3.60401011,4403.0,4402.9,0.31894593]
[1760014115155,8.19536011,4403.0,4402.5,0.136]
[1760014115352,0.40868,4402.6,4402.5,0.136]
[1760014115551,0.63968,4402.6,4402.5,0.136]
[1760014115754,3.56778861,4402.6,4402.5,0.136]
[1760014115966,0.40873,4402.1,4402.0,0.136]
[1760014116261,3.55563093,4402.1,4402.0,0.1378472]
[1760014117057,3.55563093,4402.1,4401.1,0.40882]
[1760014117058,0.40877,4401.6,4401.0,0.1358]
[1760014117264,0.63877,4401.6,4401.5,0.4522]
[1760014117560,3.58291919,4401.6,4401.5,0.4522]
[1760014118064,3.58291919,4401.6,4401.5,0.4551363]
[1760014118256,3.58291919,4401.6,4401.5,0.1387363]
[1760014118652,3.58291919,4401.6,4401.5,0.4551363]
[1760014120461,8.58291919,4401.6,4401.5,0.1387363]
[1760014120665,0.40881,4401.2,4401.1,0.3164]
[1760014120863,0.63881,4401.2,4401.0,0.1358]
[1760014121059,3.59692043,4401.2,4401.0,0.1358]
[1760014121259,3.59692043,4401.2,4401.1,0.3164]
[1760014121564,3.59692043,4401.2,4401.1,0.31869876]
[1760014121954,3.18811043,4401.2,4401.1,0.31869876]
[1760014122159,1.02185,4402.0,4401.3,0.7252]
[1760014122366,0.40875,4401.8,4401.6,0.3164]
[1760014122562,0.40877,4401.6,4401.5,0.136]
[1760014122758,0.63877,4401.6,4401.5,0.136]
[1760014123066,3.62068126,4401.6,4401.5,0.4524]
[1760014124663,3.39068126,4401.6,4401.5,0.4524]
[1760014124871,3.21191126,4401.6,4401.5,0.4524]
[1760014128970,3.62068126,4401.6,4401.5,0.136]
[1760014129172,4.17377419,4401.6,4401.5,0.136]
[1760014129365,8.76500419,4401.6,4401.1,0.34329876]
[1760014129571,0.40881,4401.2,4401.1,0.00229876]
[1760014129770,0.63881,4401.2,4401.1,0.00229876]
[1760014129971,3.61115053,4401.2,4401.1,0.00229876]
[1760014130173,3.93515805,4401.2,4401.1,0.34329876]
[1760014130364,3.61115053,4401.2,4401.1,0.34329876]
[1760014134270,3.38115053,4401.2,4401.1,0.56149876]
[1760014134471,3.61115053,4401.2,4401.1,0.34329876]
[1760014136379,3.38115053,4401.2,4401.1,0.34329876]
[1760014136677,3.61115053,4401.2,4401.1,0.34329876]
[1760014140381,4.16482057,4401.2,4401.1,0.00229876]
[1760014140880,3.61115053,4401.2,4401.1,0.00229876]
[1760014141176,4.16496959,4401.2,4401.1,0.00229876]
[1760014141476,0.40887,4400.6,4400.5,0.136]
[1760014141774,3.59744122,4400.6,4400.5,0.3595]
[1760014142078,3.59744122,4400.6,4400.5,0.6968]
[1760014142575,3.59744122,4400.6,4400.5,0.69858573]
[1760014142781,3.59744122,4400.6,4400.5,0.47508573]
[1760014147188,4.15242157,4400.6,4400.5,0.47508573]
[1760014147482,3.92242157,4400.6,4400.5,0.69858573]
[1760014147788,4.15242157,4400.6,4400.5,0.92018573]
[1760014147982,4.15242157,4400.6,4400.5,0.47508573]
[1760014148384,0.78498035,4400.6,4400.5,0.92018573]
[1760014148788,0.63887,4400.6,4400.5,0.92018573]
[1760014148989,0.40887,4400.6,4400.5,0.92018573]
[1760014149195,0.63887,4400.6,4400.5,0.92018573]
[1760014149594,0.40887,4400.6,4400.5,0.92018573]
[1760014149794,0.63887,4400.6,4400.5,0.92018573]
[1760014150395,1.1936898,4400.6,4400.5,0.47508573]
[1760014150995,1.1936898,4400.6,4400.5,0.69858573]
[1760014151197,1.1936898,4400.6,4400.5,0.47508573]
[1760014151696,4.4014898,4400.6,4400.5,0.47508573]
[1760014151897,3.9926198,4400.6,4400.5,1.32906573]
[1760014152096,3.4378,4400.6,4400.5,1.32906573]
[1760014152298,3.84667,4400.6,4400.5,1.32906573]
[1760014152501,3.84667,4400.6,4400.5,0.92018573]
[1760014152996,3.4378,4400.6,4400.5,1.32906573]
[1760014153397,0.23,4400.6,4400.5,1.32906573]
[1760014153703,0.59055,4400.8,4400.7,0.85396]
[1760014153704,0.1817,4400.8,4400.7,0.85396]
[1760014153906,0.4117,4400.8,4400.7,1.19126]
[1760014154103,0.40884,4400.9,4400.8,0.63235]
[1760014154405,0.63884,4400.9,4400.8,0.7824]
[1760014154600,3.2078,4401.2,4401.0,0.1381]
[1760014154796,0.63882,4401.1,4401.0,0.4754]
[1760014154999,3.2078,4401.2,4401.1,1.19122]
[1760014155197,3.4378,4401.2,4401.1,1.19122]
[1760014155503,0.23,4401.2,4401.1,1.19122]
[1760014155704,3.2078,4401.7,4401.6,1.19117]
[1760014155906,3.2078,4402.2,4402.1,1.19113]
[1760014156110,3.4378,4402.2,4402.1,1.19113]
[1760014156494,3.2078,4402.2,4402.1,6.19113]
[1760014156699,3.4378,4402.2,4402.1,6.19113]
[1760014156899,1.21794574,4403.8,4402.8,0.40866]
[1760014157104,3.98936068,4402.9,4402.8,0.96756]
[1760014157302,3.4348,4402.9,4402.8,1.19106]
[1760014157604,3.4348,4402.9,4402.8,0.3373]
[1760014158600,0.227,4402.9,4402.8,0.3373]
[1760014161606,0.227,4402.9,4402.8,0.96946]
[1760014161802,0.00204322,4403.0,4402.9,0.7824]
[1760014162001,0.00204322,4403.0,4402.9,3.9902]
[1760014163300,0.00204322,4403.0,4402.9,8.9902]
[1760014165007,0.00204322,4403.0,4402.9,3.9902]
[1760014165304,0.00204322,4403.0,4402.9,0.3373]
[1760014166699,2.89278307,4403.0,4402.9,0.3373]
[1760014167305,0.40868,4402.6,4402.5,0.1381]
[1760014167603,3.64328241,4402.6,4402.5,0.1381]
[1760014167799,3.23460241,4402.6,4402.5,0.1381]
[1760014168012,3.23460241,4402.6,4402.5,0.4754]
[1760014168309,3.00460241,4402.6,4402.5,0.4754]
[1760014168499,3.23460241,4402.6,4402.5,0.4754]
[1760014169813,8.23460241,4402.6,4402.5,0.4754]
[1760014171206,8.23460241,4402.6,4402.5,0.1381]
[1760014172009,0.40872,4402.2,4402.1,0.3347]
[1760014172214,0.63872,4402.2,4402.1,0.3347]
[1760014172410,3.63005658,4402.2,4402.1,0.3347]
[1760014174613,2.99133658,4402.2,4402.1,0.7763]
[1760014174808,0.40873,4402.1,4402.0,0.4728]
[1760014175216,0.40877,4401.6,4401.2,3.2078]
[1760014175416,3.84657,4401.6,4401.0,0.1381]
[1760014175716,6.85163516,4401.6,4401.0,0.1381]
[1760014175914,6.85163516,4401.6,4401.0,0.4728]
[1760014176519,0.40882,4401.1,4401.0,0.4728]
[1760014176818,3.62832305,4401.1,4401.0,0.1381]
[1760014177313,6.83612305,4401.1,4401.0,0.1381]
[1760014177709,0.40886,4400.7,4400.6,0.3347]
[1760014178010,3.62505067,4400.7,4400.6,0.3347]
[1760014178821,3.62505067,4400.7,4400.5,0.13318573]
[1760014179017,3.62505067,4400.7,4400.5,0.46788573]
[1760014179916,3.62505067,4400.7,4400.1,2.8572]
[1760014179917,8.21619067,4400.7,4400.1,2.8572]
[1760014180113,0.40894,4399.8,4399.7,0.3347]
[1760014180310,0.63894,4399.8,4399.7,0.3347]
[1760014180618,3.57793485,4399.8,4399.7,0.3347]
[1760014181016,3.17124884,4399.8,4399.7,0.33665993]
[1760014181215,2.94124884,4399.8,4399.7,0.77825993]
[1760014181520,0.00225399,4399.8,4399.7,0.77825993]
[1760014181712,0.23225399,4399.8,4399.7,0.77825993]
[1760014182113,0.00225399,4399.8,4399.7,0.77825993]
[1760014182420,3.61662,4401.1,4401.0,0.4661]
[1760014182616,3.84662,4401.1,4401.0,0.4661]
[1760014182820,6.82332107,4401.1,4401.0,0.4661]
[1760014183314,6.82605129,4401.1,4401.0,0.4661]
[1760014186115,6.82605129,4401.1,4401.0,0.1314]
[1760014187119,11.82605129,4401.1,4401.0,0.1314]
[1760014187320,0.40886,4400.7,4400.6,0.3351]
[1760014187620,3.65175224,4400.7,4400.5,0.1314]
[1760014187819,3.2078,4400.6,4400.5,0.1314]
[1760014188018,3.2078,4400.6,4400.5,0.4665]
[1760014188214,6.22069224,4400.6,4400.5,0.4665]
[1760014188411,6.22069224,4400.6,4400.5,0.1314]
[1760014189125,0.4089,4400.2,4400.1,0.3351]
[1760014189324,0.6389,4400.2,4400.1,0.3351]
[1760014189619,3.41023234,4400.2,4400.1,0.3351]
[1760014189818,3.64023234,4400.2,4400.1,0.3351]
[1760014191421,3.64023234,4400.2,4399.5,0.4665]
[1760014191422,0.40894,4399.8,4399.5,0.4665]
[1760014191623,0.63894,4399.8,4399.5,0.4665]
[1760014191820,3.52611265,4399.8,4399.5,0.4665]
[1760014192323,0.40896,4399.6,4399.5,0.4665]
[1760014192621,3.52675523,4399.6,4399.5,0.1314]
[1760014193316,3.52675523,4399.6,4399.5,0.13409265]
[1760014193928,0.40901,4399.1,4399.0,0.1298]
[1760014194226,0.4091,4398.1,4398.0,0.1298]
[1760014194519,0.6391,4398.1,4398.0,0.1298]
[1760014195039,0.6391,4398.1,4398.0,0.13230261]
[1760014195325,0.23,4398.1,4398.0,0.13230261]
[1760014196320,0.23,4398.1,4398.0,0.46740261]
[1760014198331,3.2078,4399.0,4398.6,0.40905]
[1760014198524,3.61682,4399.0,4398.9,0.5702]
[1760014198718,3.84682,4399.0,4398.9,0.3465]
[1760014198917,6.81611081,4399.0,4398.9,0.3465]
[1760014199117,3.60831081,4399.0,4398.9,0.3465]
[1760014199522,0.40905,4398.6,4398.5,0.1305]
[1760014199818,3.58078019,4398.6,4398.5,0.1305]
[1760014200222,3.35078019,4398.6,4398.5,0.477]
[1760014200427,3.58078019,4398.6,4398.5,0.477]
[1760014200929,3.58078019,4398.6,4398.5,0.7007]
[1760014201126,3.58078019,4398.6,4398.5,0.477]
[1760014201330,3.58078019,4398.6,4398.5,0.1305]
[1760014201525,3.35078019,4398.6,4398.5,0.1305]
[1760014201826,3.58078019,4398.6,4398.5,0.477]
[1760014202424,0.40909,4398.2,4398.1,0.3465]
[1760014202626,0.63909,4398.2,4398.1,0.3465]
[1760014202824,3.62169526,4398.2,4398.1,0.3465]
[1760014203221,3.2078,4398.3,4398.2,0.40909]
[1760014203422,38.6798,4399.4,4398.7,0.7998]
[1760014203629,0.409,4399.2,4399.1,0.3465]
[1760014203930,0.96574035,4399.2,4399.1,0.3465]
[1760014204229,4.13286963,4399.2,4399.1,0.3465]
[1760014205426,0.40903,4398.8,4398.7,0.3465]
[1760014205637,0.40905,4398.6,4398.5,0.477]
[1760014205929,0.63905,4398.6,4398.5,0.477]
[1760014206129,3.64528533,4398.6,4398.5,0.477]
[1760014206527,4.81646325,4398.6,4398.1,0.3465]
[1760014206728,0.40909,4398.2,4398.1,0.3465]
[1760014206927,0.63909,4398.2,4398.1,0.3465]
[1760014207131,3.64324521,4398.2,4398.0,0.47880261]
[1760014208630,3.64324521,4398.2,4398.1,0.5702]
[1760014209330,3.64324521,4398.2,4398.1,0.3465]
[1760014209331,4.20091845,4398.2,4398.1,0.3465]
[1760014209724,1.21794574,4399.3,4398.2,0.40909]
[1760014209930,0.55766343,4399.2,4399.1,0.3465]
[1760014210136,3.79526488,4399.2,4399.1,0.5702]
[1760014210434,0.78766343,4399.2,4399.1,0.7998]
[1760014210623,0.55766343,4399.2,4399.1,0.7998]
[1760014210826,0.78766343,4399.2,4399.1,0.7998]
[1760014211026,0.23,4399.2,4399.1,0.7998]
[1760014212233,3.61678,4399.4,4399.3,0.4533]
[1760014212430,3.99547803,4399.4,4399.3,0.7998]
[1760014212731,0.40895,4399.7,4399.4,0.40898]
[1760014212942,0.40895,4399.7,4399.6,0.7998]
[1760014213139,0.63895,4399.7,4399.6,0.7998]
[1760014214239,0.23,4399.7,4399.6,0.7998]
[1760014214839,0.23,4399.7,4399.6,0.4533]
[1760014215042,0.23,4399.7,4399.6,0.7998]
[1760014215236,0.1818,4399.9,4399.7,0.40895]
[1760014215538,0.1818,4399.9,4399.8,0.7998]
[1760014215835,0.4118,4399.9,4399.8,0.7998]
[1760014216037,0.1818,4399.9,4399.8,0.7998]
[1760014216237,3.21053022,4401.1,4400.7,0.5702]
[1760014216441,0.00273022,4401.1,4401.0,0.9303]
[1760014216646,0.23273022,4401.1,4401.0,0.9303]
[1760014216830,0.79056204,4401.1,4401.0,0.9303]
[1760014217035,0.79056204,4401.1,4401.0,0.7007]
[1760014217741,0.79056204,4401.1,4401.0,0.477]
[1760014219434,0.79004426,4401.1,4401.0,0.477]
[1760014219643,0.79004426,4401.1,4401.0,1.33913]
[1760014219644,0.23273022,4401.1,4401.0,1.33913]
[1760014219938,0.00273022,4401.1,4401.0,1.33913]
[1760014220138,0.00273022,4401.1,4401.0,6.33913]
[1760014221341,0.00273022,4401.1,4401.0,5.9303]
[1760014221946,0.00273022,4401.1,4401.0,0.9303]
[1760014222945,0.00273022,4401.1,4401.0,0.7007]
[1760014223140,0.00273022,4401.1,4401.0,0.477]
[1760014224543,2.94086976,4401.1,4400.6,0.3465]
[1760014224744,6.55748976,4401.1,4401.0,0.477]
[1760014224946,6.78748976,4401.1,4401.0,0.477]
[1760014228141,6.37866976,4401.1,4401.0,0.477]
[1760014228446,6.37866976,4401.1,4401.0,0.7007]
[1760014229256,0.00273022,4401.1,4401.0,0.9182]
[1760014229444,0.23273022,4401.1,4401.0,5.9182]
[1760014229644,0.00273022,4401.1,4401.0,5.9182]
[1760014231641,0.00273022,4401.1,4401.0,0.9182]
[1760014231852,0.23273022,4401.1,4401.0,0.9182]
[1760014232653,0.23273022,4401.1,4401.0,0.477]
[1760014234250,3.44053022,4401.1,4401.0,0.477]
[1760014234448,6.3967418,4401.1,4401.0,0.477]
[1760014236048,6.3967418,4401.1,4401.0,0.1305]
[1760014237949,6.3967418,4401.1,4401.0,0.6987]
[1760014238848,6.8055618,4401.1,4401.0,0.4719]
[1760014239049,0.40887,4400.6,4400.5,0.1305]
[1760014239257,3.84667,4400.6,4400.5,0.1305]
[1760014239464,6.79357931,4400.6,4400.5,0.1305]
[1760014240360,0.40891,4400.1,4400.0,0.4719]
[1760014240554,3.84671,4400.1,4400.0,0.1305]
[1760014240857,6.14908957,4400.1,4400.0,0.6987]
[1760014241058,3.17128957,4400.1,4400.0,0.9162]
[1760014241250,0.23,4400.1,4400.0,0.9162]
[1760014241445,3.2078,4400.6,4400.5,0.364]
[1760014241652,3.2078,4400.6,4400.5,1.33178]
[1760014241854,0.23,4400.6,4400.5,1.33178]
[1760014242459,0.23,4400.6,4400.5,0.4786]
[1760014242755,0.23,4400.6,4400.5,0.9229]
[1760014243751,0.23,4400.6,4400.5,0.7054]
[1760014244756,0.23,4400.6,4400.5,0.9229]
[1760014245853,3.2078,4401.0,4400.6,0.216]
[1760014246055,1.19787191,4400.9,4400.8,0.5408]
[1760014246358,4.10297324,4400.9,4400.8,0.5408]
[1760014247763,4.10297324,4400.9,4400.8,0.3248]
[1760014249358,0.78903191,4400.9,4400.8,0.7592]
[1760014249661,0.00273022,4401.1,4401.0,0.8857]
[1760014250561,0.23273022,4401.1,4401.0,0.6673]
[1760014250762,6.98853306,4401.1,4401.0,0.4513]
[1760014251663,0.56174717,4401.1,4401.0,1.29453]
[1760014252164,0.00273022,4401.1,4401.0,0.86013]
[1760014252354,0.1817,4401.5,4401.4,0.40879]
[1760014252655,3.61651,4402.3,4402.1,0.3248]
[1760014252861,0.78893114,4402.2,4402.1,0.3248]
[1760014253353,0.23191454,4402.2,4402.1,0.32694126]
[1760014255261,0.00191454,4402.2,4402.1,0.32694126]
[1760014255662,0.23191454,4402.2,4402.1,0.32694126]
[1760014257062,0.23191454,4402.2,4402.1,5.32694126]
[1760014257063,0.00191454,4402.2,4402.1,5.32694126]
[1760014258658,0.00191454,4402.2,4402.1,5.76404126]
[1760014259966,0.00191454,4402.2,4402.1,0.76404126]
[1760014260168,0.00191454,4402.2,4402.1,0.32694126]
[1760014260367,0.00191454,4402.2,4402.0,3.3343]
[1760014260368,0.40877,4401.6,4401.5,0.1265]
[1760014260570,0.63877,4401.6,4401.5,0.1265]
[1760014261061,3.59281275,4401.6,4401.5,0.1265]
[1760014261258,3.59281275,4401.6,4401.5,0.1286096]
[1760014262066,6.80061275,4401.6,4401.5,0.1286096]
[1760014262262,6.80061275,4401.6,4401.5,0.4503096]
[1760014263869,6.39184275,4401.6,4401.5,0.4503096]
[1760014266071,11.39184275,4401.6,4401.5,0.0021096]
[1760014266868,11.94931959,4401.6,4401.5,0.0021096]
[1760014267068,11.94931959,4401.6,4401.0,0.4482]
[1760014267069,0.40882,4401.1,4401.0,0.4482]
[1760014267362,0.40886,4400.7,4400.6,0.3217]
[1760014267567,0.63886,4400.7,4400.6,0.3217]
[1760014268076,3.2078,4401.1,4401.0,0.6687]
[1760014268265,3.4378,4401.1,4401.0,0.6687]
[1760014269873,3.84662,4401.1,4401.0,0.6687]